[Event "*** Titled Tuesday Blitz"]
[Site "Chess.com"]
[Date "2021.04.20"]
[Round "1"]
[White "Supernotar"]
[Black "PavelChernomordik"]
[Result "1-0"]
[WhiteElo "2665"]
[BlackElo "2365"]
[TimeControl "180+1"]
[EndTime "10:07:43 PDT"]
[Termination "Supernotar won by resignation"]

1. d4 {[%clk 0:03:00.9]} 1... g6 {[%clk 0:02:59.3]} 2. c3 {[%clk 0:03:00.5]}
2... Bg7 {[%clk 0:02:59]} 3. Nf3 {[%clk 0:03:01.2]} 3... d6 {[%clk 0:02:58.9]}
4. Bf4 {[%clk 0:03:01.4]} 4... Nd7 {[%clk 0:02:58.4]} 5. h3 {[%clk 0:03:01.7]}
5... e5 {[%clk 0:02:57.3]} 6. Bh2 {[%clk 0:03:01.9]} 6... Qe7 {[%clk 0:02:57.1]}
7. e3 {[%clk 0:03:01.7]} 7... Nh6 {[%clk 0:02:52]} 8. Be2 {[%clk 0:03:01.9]}
8... O-O {[%clk 0:02:50.9]} 9. O-O {[%clk 0:03:02]} 9... c6 {[%clk 0:02:48.3]}
10. dxe5 {[%clk 0:03:01.8]} 10... dxe5 {[%clk 0:02:47.1]} 11. Nbd2 {[%clk
0:03:01.9]} 11... Nb6 {[%clk 0:02:34.5]} 12. Qc2 {[%clk 0:02:59.6]} 12... f5
{[%clk 0:02:29.5]} 13. a4 {[%clk 0:02:58.3]} 13... Nd5 {[%clk 0:02:20.5]} 14. a5
{[%clk 0:02:53.9]} 14... g5 {[%clk 0:02:16]} 15. Nc4 {[%clk 0:02:54]} 15... f4
{[%clk 0:02:05.5]} 16. exf4 {[%clk 0:02:49.4]} 16... gxf4 {[%clk 0:02:03.1]} 17.
Bd3 {[%clk 0:02:47.4]} 17... Bf5 {[%clk 0:01:48.6]} 18. Rfe1 {[%clk 0:02:44.8]}
18... Bxd3 {[%clk 0:01:41.8]} 19. Qxd3 {[%clk 0:02:45.7]} 19... Nf7 {[%clk
0:01:41.9]} 20. Re2 {[%clk 0:02:40.4]} 20... Rae8 {[%clk 0:01:38.8]} 21. Rae1
{[%clk 0:02:39.6]} 21... Qc7 {[%clk 0:01:33.8]} 22. Qc2 {[%clk 0:02:30.3]} 22...
b5 {[%clk 0:01:29.4]} 23. axb6 {[%clk 0:02:29.8]} 23... axb6 {[%clk 0:01:29]}
24. Ncd2 {[%clk 0:02:27.6]} 24... Re7 {[%clk 0:01:20]} 25. Ne4 {[%clk
0:02:27.7]} 25... Rfe8 {[%clk 0:01:19.4]} 26. Neg5 {[%clk 0:02:27.1]} 26... Nxg5
{[%clk 0:01:16.6]} 27. Nxg5 {[%clk 0:02:28]} 27... Bf6 {[%clk 0:01:15]} 28. Ne4
{[%clk 0:02:26.1]} 28... b5 {[%clk 0:01:10.7]} 29. c4 {[%clk 0:02:23.4]} 29...
bxc4 {[%clk 0:01:09.3]} 30. Qxc4 {[%clk 0:02:24.3]} 30... Kh8 {[%clk 0:01:06.9]}
31. b4 {[%clk 0:02:21.3]} 31... Bh4 {[%clk 0:00:58.1]} 32. b5 {[%clk 0:02:16.8]}
32... f3 {[%clk 0:00:57.8]} 33. gxf3 {[%clk 0:02:09.8]} 33... Rg7+ {[%clk
0:00:57.1]} 34. Bg3 {[%clk 0:02:04.9]} 34... Re6 {[%clk 0:00:44.9]} 35. bxc6
{[%clk 0:02:02.9]} 35... Qxc6 {[%clk 0:00:44.6]} 36. Qxc6 {[%clk 0:01:31]} 36...
Rxc6 {[%clk 0:00:43.6]} 37. Kh2 {[%clk 0:01:29.2]} 37... Bxg3+ {[%clk
0:00:39.8]} 38. fxg3 {[%clk 0:01:30.1]} 38... Rf7 {[%clk 0:00:30.6]} 39. Ng5
{[%clk 0:01:28.4]} 39... Rf5 {[%clk 0:00:28.2]} 40. Rxe5 {[%clk 0:01:26.9]}
40... Rxe5 {[%clk 0:00:27.4]} 41. Rxe5 {[%clk 0:01:26.5]} 41... Rc2+ {[%clk
0:00:27.5]} 42. Kg1 {[%clk 0:01:26.2]} 42... Nc3 {[%clk 0:00:25.5]} 43. Kf1
{[%clk 0:01:19.8]} 43... h6 {[%clk 0:00:23]} 44. Ne4 {[%clk 0:01:16.9]} 44...
Nd1 {[%clk 0:00:21.7]} 45. f4 {[%clk 0:01:06.7]} 45... Ne3+ {[%clk 0:00:20.8]}
46. Ke1 {[%clk 0:01:06.1]} 46... Ng2+ {[%clk 0:00:20.1]} 47. Kf1 {[%clk
0:01:06.4]} 47... Ne3+ {[%clk 0:00:20]} 48. Kg1 {[%clk 0:01:06]} 48... Rg2+
{[%clk 0:00:18.1]} 49. Kh1 {[%clk 0:01:06]} 49... Rc2 {[%clk 0:00:15.4]} 50. Re7
{[%clk 0:01:02.2]} 50... Rc1+ {[%clk 0:00:11.8]} 51. Kh2 {[%clk 0:01:02.7]}
51... Rc2+ {[%clk 0:00:10.9]} 52. Kg1 {[%clk 0:01:02]} 52... Rg2+ {[%clk
0:00:09.9]} 53. Kh1 {[%clk 0:01:02.1]} 53... Rc2 {[%clk 0:00:07]} 54. Nf6 {[%clk
0:00:57.7]} 54... Rc1+ {[%clk 0:00:06]} 55. Kh2 {[%clk 0:00:58]} 55... Rc2+
{[%clk 0:00:04.7]} 56. Kg1 {[%clk 0:00:58]} 56... Rc1+ {[%clk 0:00:03.9]} 57.
Kf2 {[%clk 0:00:57.4]} 57... Rf1+ {[%clk 0:00:04.2]} 58. Ke2 {[%clk 0:00:55.1]}
1-0

[Event "*** Titled Tuesday Blitz"]
[Site "Chess.com"]
[Date "2021.04.20"]
[Round "1"]
[White "MateusViageiro"]
[Black "KeithArkell"]
[Result "0-1"]
[WhiteElo "2298"]
[BlackElo "2604"]
[TimeControl "180+1"]
[EndTime "10:07:43 PDT"]
[Termination "KeithArkell won on time"]

1. Nf3 {[%clk 0:02:44.8]} 1... Nf6 {[%clk 0:02:59.3]} 2. d4 {[%clk 0:02:44.5]}
2... e6 {[%clk 0:02:58.9]} 3. g3 {[%clk 0:02:45]} 3... b5 {[%clk 0:02:58.5]} 4.
Bg2 {[%clk 0:02:45.1]} 4... Bb7 {[%clk 0:02:58.9]} 5. O-O {[%clk 0:02:45.1]}
5... c5 {[%clk 0:02:59.1]} 6. a4 {[%clk 0:02:44.8]} 6... b4 {[%clk 0:02:58.7]}
7. c3 {[%clk 0:02:44.8]} 7... Na6 {[%clk 0:02:57.6]} 8. Bg5 {[%clk 0:02:41.8]}
8... Be7 {[%clk 0:02:57.5]} 9. Nbd2 {[%clk 0:02:40.8]} 9... O-O {[%clk
0:02:56.3]} 10. dxc5 {[%clk 0:02:33.2]} 10... bxc3 {[%clk 0:02:53.3]} 11. bxc3
{[%clk 0:02:27]} 11... Nxc5 {[%clk 0:02:53.4]} 12. Nb3 {[%clk 0:02:15]} 12...
Nce4 {[%clk 0:02:51.1]} 13. Bxf6 {[%clk 0:02:07.9]} 13... Bxf6 {[%clk
0:02:50.3]} 14. Qd3 {[%clk 0:01:41.8]} 14... Nxc3 {[%clk 0:02:39.6]} 15. Rac1
{[%clk 0:01:32.6]} 15... Be4 {[%clk 0:02:35]} 16. Qe3 {[%clk 0:01:29.5]} 16...
Qc7 {[%clk 0:02:12.6]} 17. Qxe4 {[%clk 0:01:25.6]} 17... Nxe4 {[%clk 0:02:07.7]}
18. Rxc7 {[%clk 0:01:24.2]} 18... d5 {[%clk 0:02:07.9]} 19. Nc5 {[%clk
0:01:20.6]} 19... Nc3 {[%clk 0:02:07]} 20. e3 {[%clk 0:01:10.3]} 20... Rfc8
{[%clk 0:02:06.8]} 21. Rxc8+ {[%clk 0:01:03.2]} 21... Rxc8 {[%clk 0:02:07.7]}
22. Nd7 {[%clk 0:01:00.6]} 22... Be7 {[%clk 0:02:03.7]} 23. Nde5 {[%clk
0:00:45.6]} 23... f6 {[%clk 0:01:47]} 24. Nd3 {[%clk 0:00:43.7]} 24... e5 {[%clk
0:01:44.1]} 25. Nh4 {[%clk 0:00:42.6]} 25... g6 {[%clk 0:01:41.6]} 26. a5 {[%clk
0:00:38.9]} 26... Kf7 {[%clk 0:01:22.4]} 27. Kh1 {[%clk 0:00:36.8]} 27... Ke6
{[%clk 0:01:20.8]} 28. Rc1 {[%clk 0:00:31.1]} 28... f5 {[%clk 0:01:20.4]} 29. f4
{[%clk 0:00:22.3]} 29... e4 {[%clk 0:01:17.6]} 30. Nf2 {[%clk 0:00:16]} 30...
Bb4 {[%clk 0:01:11.1]} 31. Nd1 {[%clk 0:00:15.6]} 31... Bxa5 {[%clk 0:01:09.6]}
32. Bf1 {[%clk 0:00:14.7]} 32... Rc7 {[%clk 0:01:00]} 33. Ng2 {[%clk 0:00:13.3]}
33... Nxd1 {[%clk 0:00:58.9]} 34. Rxd1 {[%clk 0:00:13.7]} 34... Bc3 {[%clk
0:00:58.3]} 35. Ne1 {[%clk 0:00:12.8]} 35... a5 {[%clk 0:00:56.4]} 36. Nc2
{[%clk 0:00:12.9]} 36... a4 {[%clk 0:00:56.5]} 37. Nd4+ {[%clk 0:00:13.4]} 37...
Bxd4 {[%clk 0:00:53.4]} 38. Rxd4 {[%clk 0:00:12.4]} 38... a3 {[%clk 0:00:53]}
39. Ra4 {[%clk 0:00:11.2]} 39... Rc3 {[%clk 0:00:53.1]} 40. Ra6+ {[%clk
0:00:08.9]} 40... Ke7 {[%clk 0:00:52]} 41. Ra7+ {[%clk 0:00:08.1]} 41... Kd6
{[%clk 0:00:52.4]} 42. Kg1 {[%clk 0:00:07.9]} 42... Rxe3 {[%clk 0:00:51.9]} 43.
Rxh7 {[%clk 0:00:07.6]} 43... Rb3 {[%clk 0:00:44.7]} 44. Ra7 {[%clk 0:00:06.6]}
44... d4 {[%clk 0:00:41.9]} 45. Bc4 {[%clk 0:00:06.1]} 45... Rb1+ {[%clk
0:00:36.2]} 46. Kf2 {[%clk 0:00:05.4]} 46... Rb2+ {[%clk 0:00:34.9]} 47. Kf1
{[%clk 0:00:05.1]} 47... d3 {[%clk 0:00:33.3]} 48. Bf7 {[%clk 0:00:02.9]} 48...
Rb1+ {[%clk 0:00:33.4]} 49. Kf2 {[%clk 0:00:01.1]} 49... d2 {[%clk 0:00:33.2]}
0-1

[Event "*** Titled Tuesday Blitz"]
[Site "Chess.com"]
[Date "2021.04.20"]
[Round "1"]
[White "DanielTitichoca"]
[Black "aNONoNonono"]
[Result "1-0"]
[WhiteElo "2278"]
[BlackElo "2565"]
[TimeControl "180+1"]
[EndTime "10:07:43 PDT"]
[Termination "DanielTitichoca won by resignation"]

1. e4 {[%clk 0:02:59.5]} 1... Nf6 {[%clk 0:03:00.9]} 2. e5 {[%clk 0:02:57.1]}
2... Nd5 {[%clk 0:03:01.2]} 3. Nf3 {[%clk 0:02:54.6]} 3... d6 {[%clk 0:03:01.1]}
4. c4 {[%clk 0:02:52.3]} 4... Nb6 {[%clk 0:03:01]} 5. exd6 {[%clk 0:02:53.2]}
5... exd6 {[%clk 0:03:01.5]} 6. d4 {[%clk 0:02:51.8]} 6... Be7 {[%clk
0:03:01.6]} 7. h3 {[%clk 0:02:52.4]} 7... O-O {[%clk 0:03:00.8]} 8. Bd3 {[%clk
0:02:52.9]} 8... Nc6 {[%clk 0:02:59.8]} 9. O-O {[%clk 0:02:11]} 9... Bf6 {[%clk
0:02:58.4]} 10. Nc3 {[%clk 0:02:00.7]} 10... Re8 {[%clk 0:02:51.5]} 11. Be3
{[%clk 0:01:52.7]} 11... Nb4 {[%clk 0:02:34.9]} 12. Be2 {[%clk 0:01:49.1]} 12...
Bf5 {[%clk 0:02:32.6]} 13. Rc1 {[%clk 0:01:47.5]} 13... d5 {[%clk 0:02:32.3]}
14. b3 {[%clk 0:01:43.5]} 14... dxc4 {[%clk 0:02:26.6]} 15. bxc4 {[%clk
0:01:44.4]} 15... h6 {[%clk 0:02:15.2]} 16. Qb3 {[%clk 0:01:28.4]} 16... Nc6
{[%clk 0:02:09.1]} 17. Rfd1 {[%clk 0:01:26.6]} 17... Qd7 {[%clk 0:02:01.9]} 18.
c5 {[%clk 0:01:20.4]} 18... Nc8 {[%clk 0:01:49.6]} 19. d5 {[%clk 0:01:12.1]}
19... Na5 {[%clk 0:01:45.6]} 20. Qb4 {[%clk 0:01:11.1]} 20... b6 {[%clk
0:01:43.6]} 21. Bb5 {[%clk 0:01:09.9]} 21... Qe7 {[%clk 0:01:38.1]} 22. Bxe8
{[%clk 0:01:07.7]} 22... Qxe8 {[%clk 0:01:39]} 23. Bd4 {[%clk 0:01:00]} 23...
Be7 {[%clk 0:01:32.7]} 24. Re1 {[%clk 0:00:56]} 24... Qf8 {[%clk 0:01:32.5]} 25.
Na4 {[%clk 0:00:52.5]} 25... Nb7 {[%clk 0:01:18]} 26. d6 {[%clk 0:00:39.8]}
26... cxd6 {[%clk 0:01:11.3]} 27. c6 {[%clk 0:00:39.5]} 27... Nc5 {[%clk
0:01:11.1]} 28. Bxc5 {[%clk 0:00:28]} 28... dxc5 {[%clk 0:01:10.6]} 29. Qf4
{[%clk 0:00:28.7]} 29... Be6 {[%clk 0:01:05.3]} 30. Nc3 {[%clk 0:00:27.7]} 30...
Bd6 {[%clk 0:01:03.7]} 31. Qd2 {[%clk 0:00:26.7]} 31... Bc7 {[%clk 0:00:59.3]}
32. Nb5 {[%clk 0:00:24.2]} 32... Qe7 {[%clk 0:00:55]} 33. Ne5 {[%clk 0:00:17.1]}
33... Bxe5 {[%clk 0:00:45.9]} 34. Rxe5 {[%clk 0:00:18]} 34... a6 {[%clk
0:00:46.2]} 35. Nc3 {[%clk 0:00:17.6]} 35... Qc7 {[%clk 0:00:45.6]} 36. Qf4
{[%clk 0:00:16.3]} 36... Qxc6 {[%clk 0:00:42.4]} 37. Rce1 {[%clk 0:00:16.9]}
37... Ne7 {[%clk 0:00:40.9]} 38. Ne4 {[%clk 0:00:17.5]} 38... Ng6 {[%clk
0:00:40.6]} 39. Qg3 {[%clk 0:00:17.1]} 39... Nxe5 {[%clk 0:00:39.4]} 40. Qxe5
{[%clk 0:00:18]} 40... Qd5 {[%clk 0:00:32.2]} 41. Qg3 {[%clk 0:00:18.1]} 41...
Kh8 {[%clk 0:00:28.9]} 42. Qf4 {[%clk 0:00:13.8]} 42... Rd8 {[%clk 0:00:24]} 43.
Re3 {[%clk 0:00:13.5]} 43... Qd4 {[%clk 0:00:16.4]} 44. Rg3 {[%clk 0:00:13]}
44... Bd5 {[%clk 0:00:14.5]} 45. Re3 {[%clk 0:00:10.4]} 45... Re8 {[%clk
0:00:14.1]} 46. Nf6 {[%clk 0:00:03.4]} 46... Rxe3 {[%clk 0:00:13.5]} 47. Qb8+
{[%clk 0:00:02.6]} 1-0

[Event "*** Titled Tuesday Blitz"]
[Site "Chess.com"]
[Date "2021.04.20"]
[Round "1"]
[White "mapleaff"]
[Black "attack2mateU"]
[Result "0-1"]
[WhiteElo "2383"]
[BlackElo "2704"]
[TimeControl "180+1"]
[EndTime "10:07:45 PDT"]
[Termination "attack2mateU won by checkmate"]

1. c4 {[%clk 0:02:59.5]} 1... g6 {[%clk 0:02:58.3]} 2. Nc3 {[%clk 0:02:57.8]}
2... c5 {[%clk 0:02:55.8]} 3. g3 {[%clk 0:02:56.9]} 3... Bg7 {[%clk 0:02:55.5]}
4. Bg2 {[%clk 0:02:57.8]} 4... Nc6 {[%clk 0:02:55.8]} 5. Nf3 {[%clk 0:02:57.4]}
5... d6 {[%clk 0:02:54.8]} 6. O-O {[%clk 0:02:57.4]} 6... Bf5 {[%clk 0:02:54.6]}
7. d3 {[%clk 0:02:56.6]} 7... Qd7 {[%clk 0:02:54.3]} 8. e4 {[%clk 0:02:51.8]}
8... Bg4 {[%clk 0:02:44.4]} 9. Be3 {[%clk 0:02:50.8]} 9... h5 {[%clk 0:02:42.4]}
10. Qd2 {[%clk 0:02:44.3]} 10... Nd4 {[%clk 0:02:39.8]} 11. Bxd4 {[%clk
0:02:41.4]} 11... cxd4 {[%clk 0:02:39.7]} 12. Ne2 {[%clk 0:02:40.1]} 12... e5
{[%clk 0:02:32.7]} 13. Ne1 {[%clk 0:02:37.8]} 13... h4 {[%clk 0:02:30.5]} 14. f3
{[%clk 0:02:33.2]} 14... Be6 {[%clk 0:02:26.6]} 15. g4 {[%clk 0:02:26]} 15... h3
{[%clk 0:01:48.3]} 16. Bh1 {[%clk 0:02:21.1]} 16... Qe7 {[%clk 0:01:48.6]} 17.
Ng3 {[%clk 0:02:04]} 17... Bh6 {[%clk 0:01:47.6]} 18. Qe2 {[%clk 0:01:26.4]}
18... Be3+ {[%clk 0:01:45.6]} 19. Rf2 {[%clk 0:01:25.8]} 19... Qf6 {[%clk
0:01:31.3]} 20. Nc2 {[%clk 0:01:23]} 20... Bxf2+ {[%clk 0:01:30.9]} 21. Qxf2
{[%clk 0:01:23.9]} 21... Ne7 {[%clk 0:01:31]} 22. Rf1 {[%clk 0:01:21]} 22... g5
{[%clk 0:01:11.9]} 23. Nh5 {[%clk 0:01:13.5]} 23... Qh6 {[%clk 0:01:11.5]} 24.
Qg3 {[%clk 0:00:54.1]} 24... Ng6 {[%clk 0:01:09.1]} 25. Qxh3 {[%clk 0:00:33.3]}
25... Ke7 {[%clk 0:01:08.2]} 26. Qg3 {[%clk 0:00:29.8]} 26... Nf4 {[%clk
0:01:07.9]} 27. Nxf4 {[%clk 0:00:28.4]} 27... gxf4 {[%clk 0:01:08.8]} 28. Qg2
{[%clk 0:00:22.5]} 28... Qg5 {[%clk 0:00:53.1]} 29. b4 {[%clk 0:00:17.4]} 29...
b5 {[%clk 0:00:45.7]} 30. Na3 {[%clk 0:00:16.1]} 30... bxc4 {[%clk 0:00:45.2]}
31. dxc4 {[%clk 0:00:16.5]} 31... Rac8 {[%clk 0:00:41]} 32. c5 {[%clk
0:00:09.6]} 32... dxc5 {[%clk 0:00:40.2]} 33. bxc5 {[%clk 0:00:10.1]} 33... Rxc5
{[%clk 0:00:40]} 34. Qb2 {[%clk 0:00:10.7]} 34... Kf6 {[%clk 0:00:33.2]} 35. Qb4
{[%clk 0:00:10.4]} 35... Qh4 {[%clk 0:00:26]} 36. Qd2 {[%clk 0:00:02.7]} 36...
Rc3 {[%clk 0:00:26]} 37. Nb1 {[%clk 0:00:02.4]} 37... Re3 {[%clk 0:00:25.5]} 38.
Bg2 {[%clk 0:00:02.6]} 38... Qxh2+ {[%clk 0:00:25.2]} 39. Kf2 {[%clk 0:00:03.4]}
39... Qg3+ {[%clk 0:00:24.8]} 40. Kg1 {[%clk 0:00:03.4]} 40... d3 {[%clk
0:00:24.6]} 41. Nc3 {[%clk 0:00:03.3]} 41... Kg5 {[%clk 0:00:19.2]} 42. Rf2
{[%clk 0:00:02.6]} 42... Rb8 {[%clk 0:00:16.3]} 43. Nd1 {[%clk 0:00:02.5]} 43...
Rb1 {[%clk 0:00:16]} 44. Rf1 {[%clk 0:00:03.1]} 44... Re2 {[%clk 0:00:15.6]} 45.
Qxe2 {[%clk 0:00:01.4]} 45... dxe2 {[%clk 0:00:15.9]} 46. Nf2 {[%clk 0:00:02.2]}
46... exf1=Q# {[%clk 0:00:15.8]} 0-1

[Event "*** Titled Tuesday Blitz"]
[Site "Chess.com"]
[Date "2021.04.20"]
[Round "1"]
[White "FredyMatsuura"]
[Black "Gahan-MG"]
[Result "1/2-1/2"]
[WhiteElo "2336"]
[BlackElo "2625"]
[TimeControl "180+1"]
[EndTime "10:07:48 PDT"]
[Termination "Game drawn by agreement"]

1. d4 {[%clk 0:02:57.5]} 1... Nf6 {[%clk 0:02:58.9]} 2. c4 {[%clk 0:02:54.9]}
2... g6 {[%clk 0:02:58.2]} 3. Nc3 {[%clk 0:02:51.7]} 3... d5 {[%clk 0:02:59.1]}
4. Nf3 {[%clk 0:02:47.8]} 4... Bg7 {[%clk 0:02:58.4]} 5. e3 {[%clk 0:02:46.4]}
5... O-O {[%clk 0:02:57.8]} 6. Qb3 {[%clk 0:02:46.9]} 6... c6 {[%clk 0:02:45.2]}
7. Bd2 {[%clk 0:02:44.2]} 7... Qb6 {[%clk 0:02:42.3]} 8. Qxb6 {[%clk 0:02:29.6]}
8... axb6 {[%clk 0:02:43.2]} 9. cxd5 {[%clk 0:02:24.4]} 9... cxd5 {[%clk
0:02:41.5]} 10. Be2 {[%clk 0:02:14.1]} 10... Nc6 {[%clk 0:02:41.1]} 11. O-O
{[%clk 0:02:12.1]} 11... Bf5 {[%clk 0:02:38.2]} 12. Nh4 {[%clk 0:02:03.3]} 12...
Rfd8 {[%clk 0:02:26.3]} 13. Nxf5 {[%clk 0:02:01.3]} 13... gxf5 {[%clk
0:02:27.2]} 14. Rfc1 {[%clk 0:02:01.7]} 14... e6 {[%clk 0:02:26.4]} 15. Nb5
{[%clk 0:01:55.3]} 15... Ne4 {[%clk 0:02:25.1]} 16. Be1 {[%clk 0:01:54.4]} 16...
f4 {[%clk 0:02:19.1]} 17. Bd3 {[%clk 0:01:42.5]} 17... fxe3 {[%clk 0:02:17.3]}
18. fxe3 {[%clk 0:01:40.8]} 18... f5 {[%clk 0:02:14.6]} 19. Bxe4 {[%clk
0:01:37.1]} 19... dxe4 {[%clk 0:02:14]} 20. Bg3 {[%clk 0:01:36.5]} 20... e5
{[%clk 0:02:12.1]} 21. Nc7 {[%clk 0:01:29.1]} 21... exd4 {[%clk 0:02:08.4]} 22.
Nxa8 {[%clk 0:01:25.1]} 22... Rxa8 {[%clk 0:02:09.3]} 23. Rf1 {[%clk 0:01:16.9]}
23... dxe3 {[%clk 0:02:01.9]} 24. Rxf5 {[%clk 0:01:16.1]} 24... Bxb2 {[%clk
0:02:02.5]} 25. Re1 {[%clk 0:01:03.5]} 25... Bd4 {[%clk 0:02:02.2]} 26. h3
{[%clk 0:00:58.9]} 26... Rxa2 {[%clk 0:01:59.9]} 27. Rg5+ {[%clk 0:00:55.7]}
27... Kf7 {[%clk 0:01:58.4]} 28. Rg4 {[%clk 0:00:56.2]} 28... Ke6 {[%clk
0:01:56.4]} 29. Rxe4+ {[%clk 0:00:56.1]} 29... Kd5 {[%clk 0:01:56.9]} 30. Re8
{[%clk 0:00:55.4]} 30... b5 {[%clk 0:01:56.5]} 31. Bf4 {[%clk 0:00:52.9]} 31...
Ne5 {[%clk 0:01:41]} 32. Bxe3 {[%clk 0:00:42.2]} 32... Bxe3+ {[%clk 0:01:29]}
33. Rxe3 {[%clk 0:00:42]} 33... Nc4 {[%clk 0:01:27.2]} 34. R3e7 {[%clk
0:00:41.1]} 34... b4 {[%clk 0:01:17]} 35. Rxb7 {[%clk 0:00:40.1]} 35... Nd6
{[%clk 0:01:13.8]} 36. Rd8 {[%clk 0:00:39.3]} 36... Kc5 {[%clk 0:01:11.6]} 37.
Rxd6 {[%clk 0:00:35.2]} 37... Kxd6 {[%clk 0:01:11.6]} 38. Rxb4 {[%clk
0:00:35.8]} 38... Ke6 {[%clk 0:01:07]} 39. Rf4 {[%clk 0:00:35]} 39... Ra5 {[%clk
0:01:03.8]} 40. Kh2 {[%clk 0:00:35]} 40... Ke5 {[%clk 0:01:03.6]} 41. Rf8 {[%clk
0:00:34.1]} 41... Ke6 {[%clk 0:01:02.7]} 42. h4 {[%clk 0:00:33.4]} 42... Ke7
{[%clk 0:01:00.5]} 43. Rf3 {[%clk 0:00:32.3]} 43... Ra4 {[%clk 0:00:59.5]} 44.
Kh3 {[%clk 0:00:32]} 44... Ke6 {[%clk 0:00:57.8]} 45. g4 {[%clk 0:00:31.3]}
45... Ke7 {[%clk 0:00:57.1]} 46. h5 {[%clk 0:00:29.5]} 46... h6 {[%clk
0:00:53.8]} 47. Rf5 {[%clk 0:00:27.9]} 47... Ke6 {[%clk 0:00:52.6]} 48. Rf8
{[%clk 0:00:27.6]} 48... Ke7 {[%clk 0:00:50.7]} 49. Rf3 {[%clk 0:00:22.6]} 49...
Ra1 {[%clk 0:00:49.6]} 50. Kg3 {[%clk 0:00:21.6]} 50... Ra4 {[%clk 0:00:48.8]}
51. Rf5 {[%clk 0:00:20.2]} 51... Ra3+ {[%clk 0:00:47.4]} 52. Rf3 {[%clk
0:00:20.1]} 52... Ra4 {[%clk 0:00:47.8]} 53. Rf4 {[%clk 0:00:20]} 53... Ra1
{[%clk 0:00:45.3]} 54. Kh4 {[%clk 0:00:20.4]} 54... Rh1+ {[%clk 0:00:45]} 55.
Kg3 {[%clk 0:00:20.9]} 55... Ra1 {[%clk 0:00:45.6]} 56. Kf3 {[%clk 0:00:20.8]}
56... Ra3+ {[%clk 0:00:44.6]} 57. Ke4 {[%clk 0:00:21.1]} 57... Ra5 {[%clk
0:00:41.5]} 58. Rf5 {[%clk 0:00:20]} 58... Ra4+ {[%clk 0:00:41.7]} 59. Kf3
{[%clk 0:00:20.1]} 59... Ra3+ {[%clk 0:00:42.2]} 60. Kf4 {[%clk 0:00:20.5]}
60... Ra4+ {[%clk 0:00:42.5]} 61. Kg3 {[%clk 0:00:20.9]} 61... Ra3+ {[%clk
0:00:42.6]} 62. Kh4 {[%clk 0:00:21.2]} 62... Ra1 {[%clk 0:00:40.5]} 63. Rf3
{[%clk 0:00:19.5]} 1/2-1/2

[Event "*** Titled Tuesday Blitz"]
[Site "Chess.com"]
[Date "2021.04.20"]
[Round "1"]
[White "Revnov"]
[Black "c_r_e_e_p_e_r"]
[Result "1-0"]
[WhiteElo "2657"]
[BlackElo "2356"]
[TimeControl "180+1"]
[EndTime "10:07:49 PDT"]
[Termination "Revnov won by checkmate"]

1. e4 {[%clk 0:03:00.5]} 1... c5 {[%clk 0:03:00.2]} 2. Nf3 {[%clk 0:03:00.3]}
2... e6 {[%clk 0:03:00.6]} 3. d4 {[%clk 0:03:00.1]} 3... cxd4 {[%clk 0:03:01.1]}
4. Nxd4 {[%clk 0:03:00.7]} 4... a6 {[%clk 0:03:01.7]} 5. Bd3 {[%clk 0:02:59.2]}
5... Qc7 {[%clk 0:03:02]} 6. O-O {[%clk 0:02:58.8]} 6... Nf6 {[%clk 0:03:01.7]}
7. Qe2 {[%clk 0:02:58.6]} 7... d6 {[%clk 0:03:02]} 8. c4 {[%clk 0:02:56.3]} 8...
g6 {[%clk 0:03:01.3]} 9. Nc3 {[%clk 0:02:54.3]} 9... Bg7 {[%clk 0:03:00.7]} 10.
Nf3 {[%clk 0:02:53]} 10... O-O {[%clk 0:03:01.1]} 11. Bd2 {[%clk 0:02:50.8]}
11... b6 {[%clk 0:03:00.9]} 12. b4 {[%clk 0:02:50.5]} 12... Bb7 {[%clk
0:03:00.8]} 13. Rac1 {[%clk 0:02:50.7]} 13... Nbd7 {[%clk 0:03:00]} 14. Rfd1
{[%clk 0:02:50.2]} 14... Ng4 {[%clk 0:02:59.7]} 15. Bc2 {[%clk 0:02:36.6]} 15...
Nge5 {[%clk 0:02:58.5]} 16. Bb3 {[%clk 0:02:35.8]} 16... Nxf3+ {[%clk
0:02:57.5]} 17. Qxf3 {[%clk 0:02:36.7]} 17... Ne5 {[%clk 0:02:58]} 18. Qe2
{[%clk 0:02:37]} 18... Rac8 {[%clk 0:02:58.3]} 19. Na4 {[%clk 0:02:34.3]} 19...
Bc6 {[%clk 0:02:24.1]} 20. b5 {[%clk 0:02:09.5]} 20... Bb7 {[%clk 0:02:23.6]}
21. Be3 {[%clk 0:02:09]} 21... Nd7 {[%clk 0:02:22.4]} 22. f3 {[%clk 0:02:08.9]}
22... Nc5 {[%clk 0:02:16.9]} 23. Nxc5 {[%clk 0:02:08]} 23... dxc5 {[%clk
0:02:14.8]} 24. bxa6 {[%clk 0:01:58.8]} 24... Bxa6 {[%clk 0:02:15.7]} 25. Ba4
{[%clk 0:01:58.7]} 25... Rfd8 {[%clk 0:02:13.8]} 26. g3 {[%clk 0:01:55.9]} 26...
Bd4 {[%clk 0:02:07.6]} 27. Kg2 {[%clk 0:01:51.9]} 27... Bb7 {[%clk 0:01:57.9]}
28. Bf4 {[%clk 0:01:42.2]} 28... Qe7 {[%clk 0:01:53.1]} 29. Bb5 {[%clk
0:01:39.5]} 29... Ra8 {[%clk 0:01:46.8]} 30. Rd3 {[%clk 0:01:39]} 30... Ra5
{[%clk 0:01:41.7]} 31. Rcd1 {[%clk 0:01:36.8]} 31... Rda8 {[%clk 0:01:40.6]} 32.
a4 {[%clk 0:01:36.9]} 32... R5a7 {[%clk 0:01:29.5]} 33. e5 {[%clk 0:01:34.6]}
33... g5 {[%clk 0:01:25.3]} 34. Be3 {[%clk 0:01:19.7]} 34... g4 {[%clk
0:01:17.9]} 35. Bf4 {[%clk 0:01:15.4]} 35... gxf3+ {[%clk 0:01:12.3]} 36. Rxf3
{[%clk 0:01:16.3]} 36... Rxa4 {[%clk 0:00:56.2]} 37. Bxa4 {[%clk 0:01:14.5]}
37... Rxa4 {[%clk 0:00:57.1]} 38. Kh3 {[%clk 0:01:14.7]} 38... Bxf3 {[%clk
0:00:47.3]} 39. Qxf3 {[%clk 0:01:15.6]} 39... f6 {[%clk 0:00:26.4]} 40. Qc6
{[%clk 0:01:03.3]} 40... Ra7 {[%clk 0:00:20.1]} 41. Qxb6 {[%clk 0:00:57.2]}
41... Rb7 {[%clk 0:00:15.9]} 42. Qc6 {[%clk 0:00:55.8]} 42... Rc7 {[%clk
0:00:15.2]} 43. Qa8+ {[%clk 0:00:55.3]} 43... Kf7 {[%clk 0:00:15.3]} 44. exf6
{[%clk 0:00:54.2]} 44... Ra7 {[%clk 0:00:11.8]} 45. fxe7 {[%clk 0:00:41]} 45...
Rxa8 {[%clk 0:00:11.6]} 46. Bd6 {[%clk 0:00:41.1]} 46... Ra6 {[%clk 0:00:04.8]}
47. Rf1+ {[%clk 0:00:40.3]} 47... Bf6 {[%clk 0:00:04]} 48. Rxf6+ {[%clk
0:00:39.6]} 48... Kxf6 {[%clk 0:00:04.3]} 49. e8=Q {[%clk 0:00:39.9]} 49... Rxd6
{[%clk 0:00:04.8]} 50. Qc8 {[%clk 0:00:39.4]} 50... Rd4 {[%clk 0:00:03.9]} 51.
Qxc5 {[%clk 0:00:39.3]} 51... e5 {[%clk 0:00:04]} 52. Qf8+ {[%clk 0:00:38.3]}
52... Ke6 {[%clk 0:00:04.2]} 53. Qe8+ {[%clk 0:00:36.9]} 53... Kd6 {[%clk
0:00:04.5]} 54. Qd8+ {[%clk 0:00:36.8]} 54... Kc5 {[%clk 0:00:04.9]} 55. Qc7+
{[%clk 0:00:36.9]} 55... Kb4 {[%clk 0:00:03.9]} 56. c5 {[%clk 0:00:36.6]} 56...
Rc4 {[%clk 0:00:03.9]} 57. Qb6+ {[%clk 0:00:35.7]} 57... Kc3 {[%clk 0:00:04.1]}
58. c6 {[%clk 0:00:36.2]} 58... e4 {[%clk 0:00:03.1]} 59. c7 {[%clk 0:00:36.3]}
59... e3 {[%clk 0:00:03.8]} 60. Qxe3+ {[%clk 0:00:36]} 60... Kb4 {[%clk
0:00:04.3]} 61. Qe7+ {[%clk 0:00:35.6]} 61... Kb5 {[%clk 0:00:04.1]} 62. Qd7+
{[%clk 0:00:34.5]} 62... Kb4 {[%clk 0:00:04.2]} 63. c8=Q {[%clk 0:00:34.5]}
63... Re4 {[%clk 0:00:04.3]} 64. Qdb7+ {[%clk 0:00:33.6]} 64... Ka5 {[%clk
0:00:04.7]} 65. Qca8# {[%clk 0:00:32.4]} 1-0